[Event "Hungarian Rapid-ch 2022"]
[Site "Ajka"]
[Date "2022.07.16"]
[Round "7.5"]
[White "Kozak, Adam"]
[Black "Leviczky, Tibor"]
[Result "1-0"]
[ECO "B41"]
[WhiteElo "2522"]
[BlackElo "2281"]
[Annotator "ChessBase"]
[PlyCount "159"]
[EventDate "2022.07.15"]
[EventType "swiss"]
[EventCountry "HUN"]
[SourceTitle "playchess.com"]
[Source "ChessBase"]
[SourceQuality "1"]
[TimeControl "900+10"]

1. e4 {[%emt 0:00:35]} c5 {[%emt 0:00:14]} 2. Nf3 {[%emt 0:00:01]} e6 {[%emt 0:00:02]} 3. d4 {[%emt 0:00:06]} cxd4 {[%emt 0:00:01]} 4. Nxd4 {[%emt 0:00:01]} a6 {[%emt 0:00:02]} 5. g3 {[%emt 0:00:03]} Nf6 {[%emt 0:01:00]} 6. Bg2 {[%emt 0:00:13]} Qc7 {[%emt 0:00:40]} 7. O-O {[%emt 0:00:17]} Be7 {[%emt 0:00:13]} 8. Qe2 {[%emt 0:01:21]} d6 {[%emt 0:00:05]} 9. c4 {[%emt 0:00:06]} O-O {[%emt 0:00:10]} 10. Nc3 {[%emt 0:00:20]} Bd7 {[%emt 0:01:45]} 11. Rd1 {[%emt 0:00:46]} Nc6 {[%emt 0:00:23]} 12. Nxc6 {[%emt 0:00:07]} Bxc6 {[%emt 0:00:07]} 13. b3 {[%emt 0:00:05]} Rac8 {[%emt 0:00:54]} 14. Bb2 {[%emt 0:00:47]} Rfe8 {[%emt 0:00:11]} 15. Rac1 {[%emt 0:02:46]} Qb8 {[%emt 0:00:05]} 16. a4 {[%emt 0:00:05]} b6 {[%emt 0:02:30]} 17. Ba3 {[%emt 0:03:42]} Nd7 {[%emt 0:00:49]} 18. Qc2 {[%emt 0:02:31]} a5 {[%emt 0:02:46]} 19. Re1 {[%emt 0:01:03]} Bf6 {[%emt 0:01:25]} 20. Rcd1 {[%emt 0:00:27]} Nc5 {[%emt 0:00:11]} 21. Nb5 {[%emt 0:00:41]} Red8 {[%emt 0:00:43]} 22. Bc1 {[%emt 0:00:25]} h6 {[%emt 0:00:49]} 23. h3 {[%emt 0:01:14]} Ba8 {[%emt 0:03:06]} 24. Kh2 {[%emt 0:00:31]} Na6 {[%emt 0:00:11]} 25. Qb1 {[%emt 0:00:22]} Nc5 {[%emt 0:00:11]} 26. Re2 {[%emt 0:00:16]} Bc6 {[%emt 0:00:20]} 27. Red2 {[%emt 0:00:09]} Be7 {[%emt 0:00:09]} 28. Qc2 {[%emt 0:00:10]} Bf8 {[%emt 0:00:08]} 29. Bb2 {[%emt 0:00:03]} Bxb5 {[%emt 0:00:19]} 30. axb5 {[%emt 0:00:02]} Qc7 {[%emt 0:00:05]} 31. Bc3 {[%emt 0:00:16]} Qe7 {[%emt 0:00:05]} 32. f4 {[%emt 0:00:15]} Rd7 {[%emt 0:00:15]} 33. h4 {[%emt 0:00:37]} Rcd8 {[%emt 0:00:08]} 34. h5 {[%emt 0:00:03]} Rc8 {[%emt 0:00:07]} 35. Bf3 {[%emt 0:00:03]} Rcd8 {[%emt 0:00:23]} 36. Kg2 {[%emt 0:00:09]} Rc8 {[%emt 0:00:04]} 37. Re2 {[%emt 0:00:29]} Rdd8 {[%emt 0:00:04]} 38. Red2 {[%emt 0:00:05]} Rd7 {[%emt 0:00:07]} 39. Qa2 {[%emt 0:00:17]} Rdd8 {[%emt 0:00:07]} 40. Bd4 {[%emt 0:00:01]} Qc7 {[%emt 0:00:05]} 41. Ba1 {[%emt 0:00:13]} Qe7 {[%emt 0:00:03]} 42. Qc2 {[%emt 0:00:02]} Rd7 {[%emt 0:00:10]} 43. Bd4 {[%emt 0:00:14]} Rdd8 {[%emt 0:00:02]} 44. Be3 {[%emt 0:00:01]} Rd7 {[%emt 0:00:25]} 45. Bf2 {[%emt 0:00:12]} Rdd8 {[%emt 0:00:04]} 46. Re2 {[%emt 0:00:02]} f6 {[%emt 0:00:24]} 47. Bg4 {[%emt 0:00:18]} Qf7 {[%emt 0:00:21]} 48. Red2 {[%emt 0:00:16]} Qe7 {[%emt 0:00:03]} 49. Bf3 {[%emt 0:00:08]} Kh8 {[%emt 0:00:07]} 50. Re2 {[%emt 0:00:16]} Kg8 {[%emt 0:00:04]} 51. Rde1 {[%emt 0:00:11]} Kh8 {[%emt 0:00:05]} 52. Qd1 {[%emt 0:00:14]} Kg8 {[%emt 0:00:06]} 53. Qb1 {[%emt 0:00:03]} Kh8 54. Qc2 Kg8 {[%emt 0:00:05]} 55. Rd1 {[%emt 0:00:10]} Kh8 {[%emt 0:00:03]} 56. Qa2 {[%emt 0:00:01]} Kg8 {[%emt 0:00:04]} 57. Qb1 {[%emt 0:00:01]} Kh8 {[%emt 0:00:05]} 58. Qc2 {[%emt 0:00:00]} Kg8 59. e5 dxe5 {[%emt 0:00:14]} 60. Rxd8 {[%emt 0:00:04]} Rxd8 {[%emt 0:00:11]} 61. fxe5 {[%emt 0:00:02]} f5 {[%emt 0:00:14]} 62. Be3 {[%emt 0:00:54]} Qf7 {[%emt 0:00:13]} 63. Bf2 {[%emt 0:00:36]} Rd7 {[%emt 0:00:22]} 64. Be3 {[%emt 0:00:11]} Rd8 {[%emt 0:00:03]} 65. Bg1 {[%emt 0:00:03]} Rd7 {[%emt 0:00:05]} 66. Be3 {[%emt 0:00:07]} Rd8 {[%emt 0:00:02]} 67. Bf2 {[%emt 0:00:00]} Rd7 {[%emt 0:00:03]} 68. Re3 {[%emt 0:00:20]} Rd8 {[%emt 0:00:04]} 69. g4 {[%emt 0:00:07]} fxg4 {[%emt 0:00:21]} 70. Bxg4 {[%emt 0:00:01]} Rd4 {[%emt 0:00:21]} 71. Rg3 {[%emt 0:00:31]} Rd8 {[%emt 0:00:26]} 72. Qg6 {[%emt 0:00:09]} Re8 {[%emt 0:00:30]} 73. Rf3 {[%emt 0:00:07]} Qd7 {[%emt 0:00:12]} 74. Kh3 {[%emt 0:00:14]} Qe7 {[%emt 0:00:33]} 75. Bxc5 {[%emt 0:00:01]} bxc5 {[%emt 0:00:03]} 76. Rd3 {[%emt 0:00:09]} Qf7 {[%emt 0:00:22]} 77. Kg2 {[%emt 0:00:16]} Qb7+ {[%emt 0:00:05]} 78. Bf3 {[%emt 0:00:09]} Qc8 {[%emt 0:00:17]} 79. b6 {[%emt 0:00:12]} Qb8 {[%emt 0:00:14]} 80. b7 {[%emt 0:00:06]} 1-0

[Event "Hungarian Rapid-ch 2022"]
[Site "Ajka"]
[Date "2022.07.16"]
[Round "7.6"]
[White "Jakab, Attila"]
[Black "Kaczur, Florian"]
[Result "1/2-1/2"]
[ECO "A40"]
[WhiteElo "2311"]
[BlackElo "2482"]
[Annotator "ChessBase"]
[PlyCount "89"]
[EventDate "2022.07.15"]
[EventType "swiss"]
[EventCountry "HUN"]
[SourceTitle "playchess.com"]
[Source "ChessBase"]
[SourceQuality "1"]
[TimeControl "900+10"]

1. d4 {[%emt 0:00:12]} g6 {[%emt 0:00:13]} 2. c4 {[%emt 0:00:03]} Bg7 {[%emt 0:00:01]} 3. e4 {[%emt 0:00:02]} e6 {[%emt 0:00:03]} 4. Nc3 {[%emt 0:00:05]} Ne7 {[%emt 0:00:02]} 5. h4 {[%emt 0:01:53]} h6 {[%emt 0:00:04]} 6. h5 {[%emt 0:00:18]} g5 {[%emt 0:00:16]} 7. f4 {[%emt 0:00:06]} gxf4 {[%emt 0:00:11]} 8. Bxf4 {[%emt 0:00:02]} d5 {[%emt 0:00:11]} 9. e5 {[%emt 0:04:10]} b6 {[%emt 0:01:28]} 10. Nf3 {[%emt 0:00:30]} Bb7 {[%emt 0:00:05]} 11. c5 {[%emt 0:00:42]} bxc5 {[%emt 0:00:17]} 12. dxc5 {[%emt 0:00:01]} Nd7 {[%emt 0:00:10]} 13. Na4 {[%emt 0:01:27]} Nc6 {[%emt 0:00:53]} 14. Bb5 {[%emt 0:00:01]} f6 {[%emt 0:01:18]} 15. Bxc6 {[%emt 0:00:53]} Bxc6 {[%emt 0:00:02]} 16. Nd4 {[%emt 0:00:06]} Bxa4 {[%emt 0:00:34]} 17. Qxa4 {[%emt 0:00:02]} Qe7 {[%emt 0:00:24]} 18. Qc6 {[%emt 0:01:33]} fxe5 {[%emt 0:01:21]} 19. Qxa8+ {[%emt 0:00:20]} Kf7 {[%emt 0:00:02]} 20. Qxa7 {[%emt 0:00:14]} exf4 {[%emt 0:00:03]} 21. O-O-O {[%emt 0:01:32]} Qxc5+ {[%emt 0:02:54]} 22. Qxc5 {[%emt 0:00:02]} Nxc5 {[%emt 0:00:02]} 23. Rhf1 {[%emt 0:01:01]} e5 {[%emt 0:00:01]} 24. Nf5 {[%emt 0:00:22]} c6 {[%emt 0:00:22]} 25. g3 {[%emt 0:00:20]} Bf6 {[%emt 0:00:02]} 26. gxf4 {[%emt 0:00:03]} e4 {[%emt 0:00:01]} 27. Rf2 {[%emt 0:01:31]} Nd3+ {[%emt 0:01:34]} 28. Rxd3 {[%emt 0:00:01]} exd3 {[%emt 0:00:01]} 29. Rd2 {[%emt 0:00:07]} Ke6 {[%emt 0:00:09]} 30. Ne3 {[%emt 0:00:08]} Rb8 {[%emt 0:00:04]} 31. b3 {[%emt 0:00:19]} Rb4 {[%emt 0:00:01]} 32. f5+ {[%emt 0:00:15]} Kd6 {[%emt 0:00:13]} 33. Rxd3 {[%emt 0:00:01]} Rh4 {[%emt 0:00:05]} 34. a4 {[%emt 0:00:12]} Rxh5 {[%emt 0:00:09]} 35. b4 {[%emt 0:00:49]} d4 {[%emt 0:02:23]} 36. Ng4 {[%emt 0:00:19]} Bg5+ {[%emt 0:00:12]} 37. Kc2 {[%emt 0:00:01]} Kd5 {[%emt 0:00:43]} 38. a5 {[%emt 0:00:31]} Be7 {[%emt 0:01:52]} 39. a6 {[%emt 0:00:22]} Rg5 {[%emt 0:00:14]} 40. f6 {[%emt 0:00:15]} Bxb4 {[%emt 0:00:40]} 41. f7 {[%emt 0:00:01]} Kc4 {[%emt 0:00:47]} 42. a7 {[%emt 0:00:30]} Ra5 {[%emt 0:00:03]} 43. Ne5+ {[%emt 0:00:02]} Kd5 {[%emt 0:00:29]} 44. Rxd4+ {[%emt 0:00:04]} Kxd4 {[%emt 0:00:25]} 45. Nxc6+ {[%emt 0:00:01]} 1/2-1/2

[Event "Hungarian Rapid-ch 2022"]
[Site "Ajka"]
[Date "2022.07.16"]
[Round "7.7"]
[White "Vertetics, Attila"]
[Black "Hoang, Thanh Trang"]
[Result "1-0"]
[ECO "A40"]
[WhiteElo "2465"]
[BlackElo "2376"]
[Annotator "ChessBase"]
[PlyCount "107"]
[EventDate "2022.07.15"]
[EventType "swiss"]
[EventCountry "HUN"]
[SourceTitle "playchess.com"]
[Source "ChessBase"]
[SourceQuality "1"]
[TimeControl "900+10"]

1. d4 {[%emt 0:00:11]} e6 {[%emt 0:00:13]} 2. Nf3 {[%emt 0:00:10]} f5 {[%emt 0:00:04]} 3. g3 {[%emt 0:00:04]} Nf6 {[%emt 0:00:04]} 4. Bg2 {[%emt 0:00:02]} d5 {[%emt 0:00:06]} 5. O-O {[%emt 0:00:27]} Bd6 {[%emt 0:00:06]} 6. Bf4 {[%emt 0:00:40]} Bxf4 {[%emt 0:00:27]} 7. gxf4 {[%emt 0:00:02]} O-O {[%emt 0:00:12]} 8. Nbd2 {[%emt 0:00:22]} Bd7 {[%emt 0:02:46]} 9. c4 {[%emt 0:00:57]} c6 {[%emt 0:00:05]} 10. Qb3 {[%emt 0:02:00]} Qc7 {[%emt 0:01:33]} 11. Ne5 {[%emt 0:00:11]} Be8 {[%emt 0:00:20]} 12. Rac1 {[%emt 0:00:25]} Qe7 {[%emt 0:00:28]} 13. e3 {[%emt 0:00:58]} Na6 {[%emt 0:01:24]} 14. a3 {[%emt 0:00:17]} Rb8 {[%emt 0:00:25]} 15. Rfe1 {[%emt 0:00:46]} Nc7 {[%emt 0:00:16]} 16. Qc3 {[%emt 0:01:22]} dxc4 {[%emt 0:01:43]} 17. Qxc4 {[%emt 0:00:17]} Ncd5 {[%emt 0:00:15]} 18. Qc5 {[%emt 0:00:20]} Qxc5 {[%emt 0:01:18]} 19. dxc5 {[%emt 0:00:44]} Bh5 {[%emt 0:00:20]} 20. Ndc4 {[%emt 0:00:14]} Rfd8 {[%emt 0:00:28]} 21. f3 {[%emt 0:02:07]} Nd7 {[%emt 0:00:43]} 22. b4 {[%emt 0:00:12]} Nxe5 {[%emt 0:00:21]} 23. Nxe5 {[%emt 0:03:33]} Nf6 {[%emt 0:00:20]} 24. Bf1 {[%emt 0:01:11]} Kf8 {[%emt 0:00:18]} 25. Kf2 {[%emt 0:00:24]} Rd2+ {[%emt 0:00:24]} 26. Re2 {[%emt 0:00:01]} Rbd8 {[%emt 0:00:15]} 27. Ke1 {[%emt 0:00:07]} Rxe2+ {[%emt 0:00:42]} 28. Bxe2 {[%emt 0:00:02]} Nd5 {[%emt 0:00:17]} 29. Kf2 {[%emt 0:00:20]} Ke7 {[%emt 0:00:33]} 30. Nc4 {[%emt 0:00:25]} Kd7 {[%emt 0:01:00]} 31. Rg1 {[%emt 0:00:12]} Rg8 {[%emt 0:00:02]} 32. Ne5+ {[%emt 0:00:09]} Kc7 {[%emt 0:00:06]} 33. Bc4 {[%emt 0:00:04]} Be8 {[%emt 0:00:33]} 34. Ke2 {[%emt 0:00:32]} Kd8 {[%emt 0:01:22]} 35. Kd3 {[%emt 0:00:21]} Ke7 {[%emt 0:00:03]} 36. Kd4 {[%emt 0:00:30]} Kf6 {[%emt 0:00:08]} 37. h4 {[%emt 0:00:03]} h6 {[%emt 0:00:32]} 38. Bb3 {[%emt 0:00:24]} a6 {[%emt 0:00:43]} 39. Nc4 {[%emt 0:00:11]} Bh5 {[%emt 0:00:08]} 40. Rg3 {[%emt 0:00:06]} Rd8 {[%emt 0:00:05]} 41. Nd6 {[%emt 0:00:03]} Nc7 {[%emt 0:00:15]} 42. e4 {[%emt 0:00:09]} Nb5+ {[%emt 0:00:11]} 43. Ke3 {[%emt 0:00:01]} Nxa3 {[%emt 0:00:13]} 44. e5+ {[%emt 0:00:04]} Ke7 {[%emt 0:00:02]} 45. Rxg7+ {[%emt 0:00:01]} Kf8 {[%emt 0:00:01]} 46. Rxb7 {[%emt 0:00:02]} Nb5 {[%emt 0:00:05]} 47. Bxe6 {[%emt 0:00:04]} Nxd6 {[%emt 0:00:08]} 48. cxd6 {[%emt 0:00:01]} Bg6 {[%emt 0:00:07]} 49. Kd4 {[%emt 0:00:03]} Ra8 {[%emt 0:00:03]} 50. Kc5 {[%emt 0:00:10]} a5 {[%emt 0:00:07]} 51. bxa5 {[%emt 0:00:02]} Rxa5+ {[%emt 0:00:02]} 52. Kxc6 {[%emt 0:00:01]} Ra6+ {[%emt 0:00:04]} 53. Rb6 {[%emt 0:00:02]} Ra3 {[%emt 0:00:03]} 54. Rb8+ {[%emt 0:00:02]} 1-0

[Event "Hungarian Rapid-ch 2022"]
[Site "Ajka"]
[Date "2022.07.16"]
[Round "7.8"]
[White "Straubinger, Daniel"]
[Black "Antal, Gergely"]
[Result "0-1"]
[ECO "B10"]
[WhiteElo "2349"]
[BlackElo "2571"]
[Annotator "ChessBase"]
[PlyCount "76"]
[EventDate "2022.07.15"]
[EventType "swiss"]
[EventCountry "HUN"]
[SourceTitle "playchess.com"]
[Source "ChessBase"]
[SourceQuality "1"]
[TimeControl "900+10"]

1. e4 {[%emt 0:00:13]} c6 {[%emt 0:00:14]} 2. Nc3 {[%emt 0:00:30]} d5 {[%emt 0:00:01]} 3. Nf3 {[%emt 0:00:14]} dxe4 {[%emt 0:00:01]} 4. Nxe4 {[%emt 0:00:02]} Nf6 {[%emt 0:00:02]} 5. Qe2 {[%emt 0:00:02]} Nxe4 {[%emt 0:00:06]} 6. Qxe4 {[%emt 0:00:03]} Nd7 {[%emt 0:00:01]} 7. Bc4 {[%emt 0:00:25]} Nf6 {[%emt 0:00:02]} 8. Ne5 {[%emt 0:00:02]} e6 {[%emt 0:00:01]} 9. Qe2 {[%emt 0:00:14]} b5 {[%emt 0:00:02]} 10. Bb3 {[%emt 0:00:36]} Qc7 {[%emt 0:00:04]} 11. d4 {[%emt 0:00:11]} Bd6 {[%emt 0:00:09]} 12. c3 {[%emt 0:01:19]} O-O {[%emt 0:00:08]} 13. Bg5 {[%emt 0:00:08]} Nd5 {[%emt 0:01:24]} 14. Bd2 {[%emt 0:01:47]} c5 {[%emt 0:01:14]} 15. Nf3 {[%emt 0:00:43]} a6 {[%emt 0:01:02]} 16. O-O {[%emt 0:01:24]} Bb7 {[%emt 0:01:36]} 17. h3 {[%emt 0:01:17]} cxd4 {[%emt 0:01:09]} 18. Nxd4 {[%emt 0:01:28]} Rae8 {[%emt 0:00:51]} 19. a4 {[%emt 0:00:29]} b4 {[%emt 0:00:59]} 20. c4 {[%emt 0:01:56]} Nf4 {[%emt 0:00:14]} 21. Bxf4 {[%emt 0:00:03]} Bxf4 {[%emt 0:00:02]} 22. Bc2 {[%emt 0:00:35]} g6 {[%emt 0:01:34]} 23. Nf3 {[%emt 0:01:31]} f5 {[%emt 0:00:44]} 24. Rad1 {[%emt 0:01:17]} e5 {[%emt 0:00:19]} 25. c5 {[%emt 0:00:01]} Qxc5 {[%emt 0:00:45]} 26. Bb3+ {[%emt 0:00:11]} Kh8 {[%emt 0:00:02]} 27. Rfe1 {[%emt 0:01:20]} e4 {[%emt 0:00:52]} 28. Nd4 {[%emt 0:00:05]} Rf6 {[%emt 0:00:02]} 29. Nc2 {[%emt 0:00:49]} Rd6 {[%emt 0:00:47]} 30. Rxd6 {[%emt 0:00:07]} Bxd6 {[%emt 0:00:01]} 31. Ne3 {[%emt 0:00:26]} f4 {[%emt 0:01:43]} 32. Nc4 {[%emt 0:00:03]} Bc7 {[%emt 0:00:01]} 33. Rd1 {[%emt 0:00:20]} Bc6 {[%emt 0:00:09]} 34. Qd2 {[%emt 0:00:29]} e3 {[%emt 0:00:16]} 35. Qe2 {[%emt 0:00:20]} f3 {[%emt 0:02:05]} 36. gxf3 {[%emt 0:00:08]} Qg5+ {[%emt 0:00:09]} 37. Kh1 {[%emt 0:00:14]} Qf4 {[%emt 0:00:44]} 38. fxe3 {[%emt 0:00:12]} Bxf3+ {[%emt 0:00:07]} 0-1

[Event "Hungarian Rapid-ch 2022"]
[Site "Ajka"]
[Date "2022.07.16"]
[Round "7.9"]
[White "Papp, Levente"]
[Black "Aczel, Gergely"]
[Result "0-1"]
[ECO "A06"]
[WhiteElo "2394"]
[BlackElo "2499"]
[Annotator "ChessBase"]
[PlyCount "114"]
[EventDate "2022.07.15"]
[EventType "swiss"]
[EventCountry "HUN"]
[SourceTitle "playchess.com"]
[Source "ChessBase"]
[SourceQuality "1"]
[TimeControl "900+10"]

1. Nf3 {[%emt 0:00:16]} d5 {[%emt 0:00:11]} 2. g3 {[%emt 0:00:05]} c6 {[%emt 0:00:01]} 3. Bg2 {[%emt 0:00:02]} Bg4 {[%emt 0:00:02]} 4. O-O {[%emt 0:00:03]} e6 {[%emt 0:00:07]} 5. h3 {[%emt 0:00:12]} Bh5 {[%emt 0:00:01]} 6. d3 {[%emt 0:00:41]} Nf6 {[%emt 0:00:03]} 7. Nbd2 {[%emt 0:00:05]} Be7 {[%emt 0:00:04]} 8. e4 {[%emt 0:00:03]} O-O {[%emt 0:00:12]} 9. Qe2 {[%emt 0:00:25]} a5 {[%emt 0:00:32]} 10. Rd1 {[%emt 0:01:21]} h6 {[%emt 0:01:26]} 11. Nf1 {[%emt 0:00:22]} Nbd7 {[%emt 0:00:22]} 12. g4 {[%emt 0:00:28]} Bg6 {[%emt 0:00:01]} 13. Ng3 {[%emt 0:00:02]} a4 {[%emt 0:01:36]} 14. Bf4 {[%emt 0:01:53]} Qb6 {[%emt 0:00:31]} 15. c3 {[%emt 0:00:45]} dxe4 {[%emt 0:03:50]} 16. dxe4 Nc5 17. Ne5 {[%emt 0:02:11]} Bh7 {[%emt 0:00:17]} 18. h4 {[%emt 0:00:57]} Rad8 {[%emt 0:00:40]} 19. g5 {[%emt 0:00:14]} hxg5 {[%emt 0:00:02]} 20. hxg5 {[%emt 0:01:21]} Nfd7 {[%emt 0:00:02]} 21. Nxd7 {[%emt 0:00:45]} Rxd7 {[%emt 0:01:07]} 22. Rxd7 {[%emt 0:00:08]} Nxd7 {[%emt 0:00:02]} 23. Rd1 {[%emt 0:01:22]} Rd8 {[%emt 0:00:03]} 24. Be3 {[%emt 0:00:55]} Qc7 {[%emt 0:00:29]} 25. b3 {[%emt 0:00:29]} Nf8 {[%emt 0:01:01]} 26. Rxd8 {[%emt 0:00:22]} Qxd8 {[%emt 0:00:05]} 27. Qd2 {[%emt 0:00:01]} Qxd2 {[%emt 0:01:32]} 28. Bxd2 {[%emt 0:00:01]} axb3 {[%emt 0:00:01]} 29. axb3 {[%emt 0:00:01]} f6 {[%emt 0:00:13]} 30. gxf6 {[%emt 0:00:19]} gxf6 {[%emt 0:00:01]} 31. Kf1 {[%emt 0:00:13]} Kf7 {[%emt 0:00:22]} 32. Ke2 {[%emt 0:00:03]} Bd6 {[%emt 0:00:55]} 33. f4 {[%emt 0:01:20]} Ng6 {[%emt 0:00:20]} 34. Nh5 {[%emt 0:00:21]} Nh4 {[%emt 0:00:56]} 35. Bh1 {[%emt 0:00:02]} Bg6 {[%emt 0:00:27]} 36. Ng3 {[%emt 0:00:01]} Ke7 {[%emt 0:00:11]} 37. b4 {[%emt 0:00:48]} Bf7 {[%emt 0:00:02]} 38. e5 {[%emt 0:00:19]} fxe5 {[%emt 0:00:51]} 39. fxe5 {[%emt 0:00:53]} Bxe5 {[%emt 0:00:02]} 40. Bg5+ {[%emt 0:00:06]} Bf6 {[%emt 0:00:11]} 41. Bxf6+ {[%emt 0:00:02]} Kxf6 {[%emt 0:00:02]} 42. Ne4+ Ke7 {[%emt 0:00:16]} 43. Nc5 {[%emt 0:00:42]} Bh5+ {[%emt 0:00:21]} 44. Kf2 {[%emt 0:00:10]} b6 {[%emt 0:00:08]} 45. Na4 {[%emt 0:00:56]} b5 {[%emt 0:00:02]} 46. Nb2 {[%emt 0:00:14]} Kd6 {[%emt 0:00:44]} 47. c4 {[%emt 0:00:17]} Bg6 {[%emt 0:00:20]} 48. cxb5 {[%emt 0:00:07]} cxb5 {[%emt 0:00:02]} 49. Nd1 {[%emt 0:00:05]} Bd3 {[%emt 0:00:43]} 50. Ke3 {[%emt 0:00:10]} Bc4 {[%emt 0:00:05]} 51. Be4 {[%emt 0:00:04]} Ke5 {[%emt 0:00:32]} 52. Nf2 {[%emt 0:00:28]} Nf5+ {[%emt 0:00:02]} 53. Bxf5 {[%emt 0:00:01]} exf5 {[%emt 0:00:07]} 54. Nh3 {[%emt 0:00:01]} Bd5 {[%emt 0:00:18]} 55. Nf4 {[%emt 0:00:02]} Be4 {[%emt 0:00:03]} 56. Ne2 {[%emt 0:00:53]} Kd5 {[%emt 0:00:01]} 57. Nc3+ {[%emt 0:00:21]} Kc4 {[%emt 0:00:01]} 0-1

[Event "Hungarian Rapid-ch 2022"]
[Site "Ajka"]
[Date "2022.07.16"]
[Round "7.10"]
[White "Egresi, Mate"]
[Black "Bagi, Mate"]
[Result "1/2-1/2"]
[ECO "A46"]
[WhiteElo "2376"]
[BlackElo "2460"]
[Annotator "ChessBase"]
[PlyCount "27"]
[EventDate "2022.07.15"]
[EventType "swiss"]
[EventCountry "HUN"]
[SourceTitle "playchess.com"]
[Source "ChessBase"]
[SourceQuality "1"]
[TimeControl "900+10"]

1. d4 {[%emt 0:00:11]} Nf6 {[%emt 0:00:14]} 2. Nf3 {[%emt 0:00:02]} c5 {[%emt 0:00:28]} 3. e3 {[%emt 0:00:02]} g6 {[%emt 0:00:13]} 4. b3 {[%emt 0:00:19]} Bg7 {[%emt 0:00:18]} 5. Bb2 {[%emt 0:00:02]} Ne4 {[%emt 0:00:31]} 6. Be2 {[%emt 0:01:05]} d5 {[%emt 0:00:15]} 7. O-O {[%emt 0:00:04]} Nc6 {[%emt 0:00:08]} 8. c4 {[%emt 0:00:30]} O-O {[%emt 0:00:54]} 9. Nc3 {[%emt 0:00:55]} Nxc3 {[%emt 0:00:38]} 10. Bxc3 {[%emt 0:00:02]} Bg4 {[%emt 0:02:09]} 11. h3 {[%emt 0:02:57]} Bxf3 {[%emt 0:01:12]} 12. Bxf3 {[%emt 0:00:02]} cxd4 {[%emt 0:00:17]} 13. exd4 {[%emt 0:00:10]} e6 {[%emt 0:01:04]} 14. cxd5 {[%emt 0:00:20]} 1/2-1/2

[Event "Hungarian Rapid-ch 2022"]
[Site "Ajka"]
[Date "2022.07.16"]
[Round "7.11"]
[White "Korpa, Bence"]
[Black "Krstulovic, Alex"]
[Result "1/2-1/2"]
[ECO "A45"]
[WhiteElo "2537"]
[BlackElo "2413"]
[Annotator "ChessBase"]
[PlyCount "77"]
[EventDate "2022.07.15"]
[EventType "swiss"]
[EventCountry "HUN"]
[SourceTitle "playchess.com"]
[Source "ChessBase"]
[SourceQuality "1"]
[TimeControl "900+10"]

1. d4 {[%emt 0:00:13]} Nf6 {[%emt 0:00:12]} 2. Nc3 {[%emt 0:00:03]} e6 {[%emt 0:00:09]} 3. Bf4 {[%emt 0:00:28]} d5 {[%emt 0:00:39]} 4. Nb5 {[%emt 0:00:53]} Na6 {[%emt 0:00:02]} 5. e3 {[%emt 0:00:03]} c6 {[%emt 0:00:26]} 6. Nc3 {[%emt 0:00:02]} Bb4 {[%emt 0:00:01]} 7. Bxa6 {[%emt 0:01:26]} Bxc3+ {[%emt 0:00:34]} 8. bxc3 {[%emt 0:00:03]} bxa6 {[%emt 0:00:01]} 9. Nf3 {[%emt 0:00:23]} a5 {[%emt 0:00:10]} 10. Ne5 {[%emt 0:00:43]} Ba6 {[%emt 0:00:14]} 11. f3 {[%emt 0:00:12]} Nh5 {[%emt 0:02:37]} 12. Bg3 {[%emt 0:00:07]} c5 {[%emt 0:01:12]} 13. Kf2 {[%emt 0:01:08]} Rc8 {[%emt 0:02:01]} 14. Nd3 {[%emt 0:01:26]} cxd4 {[%emt 0:00:05]} 15. cxd4 {[%emt 0:00:04]} Bxd3 {[%emt 0:00:17]} 16. Qxd3 {[%emt 0:00:06]} Rc4 {[%emt 0:01:48]} 17. Rab1 {[%emt 0:00:26]} O-O {[%emt 0:00:27]} 18. Rb8 {[%emt 0:00:24]} Qe7 {[%emt 0:00:10]} 19. Rhb1 {[%emt 0:00:10]} Nxg3 {[%emt 0:00:11]} 20. hxg3 {[%emt 0:00:19]} Qc7 {[%emt 0:01:16]} 21. Rxf8+ {[%emt 0:04:42]} Kxf8 {[%emt 0:00:01]} 22. Qa3+ {[%emt 0:00:04]} Ke8 {[%emt 0:00:12]} 23. Kg1 {[%emt 0:00:39]} f6 {[%emt 0:02:05]} 24. Kh2 {[%emt 0:00:52]} Kf7 {[%emt 0:00:43]} 25. Rb5 {[%emt 0:00:22]} a4 {[%emt 0:01:17]} 26. Qb2 {[%emt 0:01:02]} Rxc2 {[%emt 0:00:15]} 27. Qb1 {[%emt 0:00:03]} Qc6 {[%emt 0:01:41]} 28. Rb7+ {[%emt 0:00:16]} Kg8 {[%emt 0:00:04]} 29. Rxa7 {[%emt 0:01:08]} h5 {[%emt 0:00:01]} 30. Qb8+ {[%emt 0:01:35]} Kh7 {[%emt 0:00:01]} 31. Qb1 {[%emt 0:00:34]} Qc3 {[%emt 0:00:30]} 32. Qb7 {[%emt 0:00:16]} Rxg2+ {[%emt 0:00:03]} 33. Kxg2 {[%emt 0:00:03]} Qc2+ {[%emt 0:00:02]} 34. Kh3 {[%emt 0:00:09]} Qf5+ {[%emt 0:00:03]} 35. Kg2 {[%emt 0:00:03]} Qc2+ {[%emt 0:00:01]} 36. Kf1 {[%emt 0:00:04]} Qd1+ {[%emt 0:00:03]} 37. Kf2 {[%emt 0:00:04]} Qd2+ {[%emt 0:00:03]} 38. Kf1 {[%emt 0:00:05]} Qd1+ {[%emt 0:00:02]} 39. Kf2 {[%emt 0:00:01]} 1/2-1/2

[Event "Hungarian Rapid-ch 2022"]
[Site "Ajka"]
[Date "2022.07.16"]
[Round "7.12"]
[White "Balint, Vilmos"]
[Black "Csonka, Balazs"]
[Result "0-1"]
[ECO "A05"]
[WhiteElo "2283"]
[BlackElo "2495"]
[Annotator "ChessBase"]
[PlyCount "80"]
[EventDate "2022.07.15"]
[EventType "swiss"]
[EventCountry "HUN"]
[SourceTitle "playchess.com"]
[Source "ChessBase"]
[SourceQuality "1"]
[TimeControl "900+10"]

1. Nf3 {[%emt 0:00:15]} Nf6 {[%emt 0:00:23]} 2. g3 {[%emt 0:00:02]} d5 {[%emt 0:00:17]} 3. Bg2 {[%emt 0:00:02]} c5 {[%emt 0:00:04]} 4. c4 {[%emt 0:00:27]} d4 {[%emt 0:00:07]} 5. b4 {[%emt 0:00:05]} a5 {[%emt 0:02:39]} 6. bxc5 {[%emt 0:01:20]} Nc6 {[%emt 0:00:03]} 7. d3 {[%emt 0:00:17]} e5 {[%emt 0:00:13]} 8. Na3 {[%emt 0:00:43]} Bxc5 {[%emt 0:00:54]} 9. Nb5 {[%emt 0:00:29]} h6 {[%emt 0:01:27]} 10. O-O {[%emt 0:00:47]} O-O {[%emt 0:00:05]} 11. Rb1 {[%emt 0:00:09]} Re8 {[%emt 0:00:44]} 12. Nd2 {[%emt 0:00:26]} Bf5 {[%emt 0:00:16]} 13. Qa4 {[%emt 0:02:08]} e4 {[%emt 0:00:52]} 14. Ba3 {[%emt 0:01:14]} Nb4 {[%emt 0:02:20]} 15. Nb3 {[%emt 0:02:21]} b6 {[%emt 0:00:08]} 16. Rbd1 {[%emt 0:01:10]} exd3 {[%emt 0:01:30]} 17. exd3 {[%emt 0:00:01]} Rc8 {[%emt 0:00:48]} 18. Bxb4 {[%emt 0:01:07]} axb4 {[%emt 0:00:03]} 19. Qa6 {[%emt 0:02:16]} Nd7 {[%emt 0:02:41]} 20. Bd5 {[%emt 0:01:01]} Ne5 {[%emt 0:00:33]} 21. Rfe1 {[%emt 0:00:54]} Nxd3 {[%emt 0:01:29]} 22. Rxe8+ {[%emt 0:00:01]} Qxe8 {[%emt 0:00:01]} 23. Qb7 {[%emt 0:00:03]} Qe2 {[%emt 0:00:30]} 24. Qxf7+ {[%emt 0:00:56]} Kh8 {[%emt 0:00:01]} 25. Qxf5 {[%emt 0:00:12]} Qxd1+ {[%emt 0:00:04]} 26. Kg2 {[%emt 0:00:00]} Rf8 {[%emt 0:00:26]} 27. Bf7 {[%emt 0:00:09]} Ne1+ {[%emt 0:00:16]} 28. Kh3 {[%emt 0:00:02]} Nf3 {[%emt 0:00:06]} 29. Nxc5 {[%emt 0:00:12]} bxc5 {[%emt 0:00:41]} 30. Nd6 {[%emt 0:00:01]} d3 {[%emt 0:00:09]} 31. Qd5 {[%emt 0:01:02]} d2 {[%emt 0:00:11]} 32. Bh5 {[%emt 0:00:27]} Qf1+ {[%emt 0:00:15]} 33. Kg4 {[%emt 0:00:01]} d1=Q {[%emt 0:00:11]} 34. Nf7+ {[%emt 0:00:07]} Rxf7 {[%emt 0:00:02]} 35. Qa8+ {[%emt 0:00:11]} Kh7 {[%emt 0:00:05]} 36. Qe4+ {[%emt 0:00:15]} Kg8 {[%emt 0:00:09]} 37. Bxf7+ {[%emt 0:00:14]} Kxf7 {[%emt 0:00:02]} 38. Qf5+ {[%emt 0:00:05]} Ke7 {[%emt 0:00:16]} 39. Qxc5+ {[%emt 0:00:07]} Qd6 {[%emt 0:00:07]} 40. Qa7+ {[%emt 0:00:04]} Qd7+ {[%emt 0:00:08]} 0-1